bitfinex/quotes_ETHUSD_20220112
["timestamp","ask_amount","ask_price","bid_price","bid_amount"]
[1642016645575,0.74072,3375.2,3374.9,0.00511581]
[1642016645775,0.77617001,3375.1,3374.9,0.00511581]
[1642016645974,1.07617001,3375.1,3374.9,0.00511581]
[1642016646175,0.33544001,3375.1,3374.9,0.00511581]
[1642016646378,0.3,3375.1,3374.9,0.00511581]
[1642016646582,1.81984256,3375.5,3374.9,0.74577581]
[1642016646782,0.74067,3375.3,3374.9,0.74577581]
[1642016646982,1.81984256,3375.5,3375.0,0.00454738]
[1642016647984,1.81984256,3375.5,3374.9,1.00511581]
[1642016648382,1.48136,3375.3,3375.0,0.00454738]
[1642016648782,1.78136,3375.3,3375.0,0.74066]
[1642016648982,1.78136,3375.3,3375.0,0.74520738]
[1642016649184,1.78136,3375.3,3375.1,0.00397896]
[1642016652418,1.78136,3375.3,3374.9,0.00511581]
[1642016652617,1.51313169,3375.2,3374.9,0.00511581]
[1642016652818,0.3,3375.1,3374.9,0.00511581]
[1642016653067,1.0407378,3375.1,3374.9,0.00511581]
[1642016653272,1.08059208,3375.1,3374.9,0.00511581]
[1642016653470,1.38059208,3375.1,3374.9,0.00511581]
[1642016654072,0.7407771,3374.9,3374.6,0.00682108]
[1642016654272,1.51413774,3374.9,3374.6,0.00682108]
[1642016654473,1.81413774,3374.9,3374.6,0.00682108]
[1642016655471,2.55492774,3374.9,3374.6,0.00682108]
[1642016655672,1.07335774,3374.9,3374.6,0.00682108]
[1642016655875,1.07335774,3374.9,3374.7,0.74073]
[1642016655876,0.3,3374.9,3374.7,0.74073]
[1642016656072,2.84230862,3375.0,3374.7,0.74073]
[1642016656272,2.84230862,3375.0,3374.8,0.00568423]
[1642016656912,0.3,3375.0,3374.8,0.00568423]
[1642016658111,0.3,3375.0,3374.8,0.74638423]
[1642016658311,1.0407169,3375.0,3374.8,0.74638423]
[1642016658515,1.0407169,3375.0,3374.9,0.00511581]
[1642016658714,1.07185173,3375.0,3374.9,0.00511581]
[1642016659616,1.07185173,3375.0,3374.8,0.69581581]
[1642016660662,0.33113483,3375.0,3374.6,0.74076]
[1642016660864,0.33113483,3375.0,3374.4,2.59985]
[1642016660865,0.7407647,3374.9,3374.4,0.1184]
[1642016661067,0.7407647,3374.9,3374.7,0.00113684]
[1642016661068,1.781696,3374.8,3374.7,0.00113684]
[1642016661276,9.33767013,3374.8,3374.7,0.00113684]
[1642016661469,17.36,3374.6,3373.1,5.0502]
[1642016661669,0.74105,3374.0,3373.1,5.0502]
[1642016661969,0.7410279,3373.6,3373.2,2.75754473]
[1642016662169,0.3,3373.5,3373.2,2.75754473]
[1642016662366,0.3,3373.5,3373.3,0.00795793]
[1642016662769,0.3,3373.5,3373.3,1.74897793]
[1642016663266,1.37484582,3373.8,3373.4,0.12578951]
[1642016663468,0.6,3373.8,3373.4,0.12578951]
[1642016663670,0.6,3373.8,3373.5,0.00682109]
[1642016663967,0.3,3373.9,3373.5,0.74774109]
[1642016664417,3.73093938,3374.3,3373.6,0.00625266]
[1642016664619,4.33093938,3374.3,3373.6,0.00625266]
[1642016664816,3.59007568,3374.3,3373.6,0.00625266]
[1642016665018,0.7409516,3374.0,3373.7,1.48174]
[1642016665219,0.7409516,3374.0,3373.5,0.74780109]
[1642016665220,0.77715598,3374.0,3373.5,0.74780109]
[1642016665418,0.77715598,3374.0,3373.8,0.00511582]
[1642016665419,1.37715598,3374.0,3373.8,0.00511582]
[1642016665619,0.63620438,3374.0,3373.8,1.54391866]
[1642016665818,0.33620438,3374.0,3373.8,1.54391866]
[1642016666019,0.3,3374.0,3373.9,0.00454739]
[1642016666420,0.3,3374.3,3373.9,0.00454739]
[1642016666621,0.1184,3374.2,3373.9,0.00454739]
[1642016666820,0.1184,3374.3,3373.9,0.00454739]
[1642016667022,0.7408918,3374.2,3373.9,0.00454739]
[1642016667220,0.77507504,3374.2,3373.9,0.00454739]
[1642016667422,0.33418324,3374.2,3373.9,0.00454739]
[1642016667621,0.63418324,3374.2,3373.9,0.00454739]
[1642016667820,0.3,3374.2,3373.9,0.00454739]
[1642016668088,2.96370119,3374.1,3373.9,0.00454739]
[1642016668285,2.6725216,3374.0,3373.9,0.00454739]
[1642016668685,2.6725216,3374.0,3373.7,0.00568424]
[1642016668686,0.3,3374.0,3373.7,0.00568424]
[1642016668890,0.3,3374.0,3373.8,0.74092]
[1642016669087,0.3,3374.1,3373.8,0.74092]
[1642016669289,0.63439003,3374.2,3373.9,0.00454739]
[1642016669490,0.03439003,3374.2,3374.0,1.16088315]
[1642016669692,0.3,3374.2,3374.0,1.16088315]
[1642016669891,1.62871271,3374.6,3374.1,0.00341054]
[1642016670091,2.80924906,3374.5,3374.3,1.37448563]
[1642016670292,0.3,3374.5,3374.1,0.00341054]
[1642016670490,0.3,3374.5,3374.4,0.00170527]
[1642016670692,0.3,3374.5,3374.1,0.00341054]
[1642016670892,0.3,3374.6,3374.1,0.00341054]
[1642016671190,1.51031271,3374.6,3374.1,1.33694368]
[1642016671591,0.74095,3374.4,3374.2,0.00284212]
[1642016671824,0.77510478,3374.4,3374.2,0.00284212]
[1642016672012,0.6,3374.3,3374.1,0.00341054]
[1642016672513,2.66984703,3374.2,3373.8,0.00511582]
[1642016672713,3.41080703,3374.2,3373.8,1.32834574]
[1642016672913,5.98402424,3374.2,3373.8,1.32834574]
[1642016673113,6.28402424,3374.2,3373.9,0.00454739]
[1642016673315,0.77817637,3374.1,3373.9,0.00454739]
[1642016673514,0.3,3374.0,3373.9,0.00454739]
[1642016673919,0.3,3374.0,3373.8,0.00511582]
[1642016674215,3.02541398,3374.0,3373.8,0.00511582]
[1642016674419,0.6,3374.0,3373.8,0.00511582]
[1642016674620,2.54319077,3373.9,3373.8,0.00511582]
[1642016675120,5.3058252,3373.9,3373.7,0.00568424]
[1642016675419,3.28416367,3373.9,3373.7,0.00568424]
[1642016675668,3.31894668,3373.9,3373.7,0.00568424]
[1642016676068,2.63818661,3373.8,3373.7,0.00568424]
[1642016676268,3.31894668,3373.9,3373.7,0.00568424]
[1642016676472,2.54319077,3373.8,3373.7,0.00568424]
[1642016676670,5.19066523,3373.8,3373.7,0.00568424]
[1642016676872,5.49066523,3373.8,3373.7,0.00568424]
[1642016678273,0.74113,3373.5,3373.2,0.00852636]
[1642016678475,2.8067942,3373.4,3373.2,0.00852636]
[1642016678674,3.1067942,3373.4,3373.2,0.00852636]
[1642016678874,2.66599133,3373.3,3373.2,0.00852636]
[1642016679079,2.96599133,3373.3,3373.2,0.00852636]
[1642016679329,0.3,3373.3,3373.0,0.0096632]
[1642016679524,0.7410901,3373.2,3373.0,0.0096632]
[1642016679725,0.77790094,3373.2,3373.0,0.0096632]
[1642016679925,1.37790094,3373.2,3373.0,0.0096632]
[1642016680826,2.54319077,3373.1,3373.0,0.0096632]
[1642016684772,0.3,3373.0,3372.7,0.01136847]
[1642016684971,1.4823277,3372.9,3372.7,0.01136847]
[1642016685171,0.3,3372.8,3372.7,0.01136847]
[1642016685973,2.95255615,3372.8,3372.7,0.01136847]
[1642016686183,3.00429054,3372.8,3372.7,0.01136847]
[1642016686373,3.00429054,3372.8,3372.3,2.23012311]
[1642016686374,0.74123,3372.7,3372.5,0.01250532]
[1642016686573,1.4824566,3372.7,3372.5,0.01250532]
[1642016686824,1.4824566,3372.7,3372.3,1.04562311]
[1642016686825,0.3,3372.6,3372.4,0.01307374]
[1642016688022,2.77587077,3372.6,3372.4,0.01307374]
[1642016688622,2.77587077,3372.6,3372.0,0.41460368]
[1642016688623,0.7413627,3372.3,3372.0,0.41460368]
[1642016688825,3.47848,3372.3,3372.0,0.41460368]
[1642016689021,3.77848,3372.3,3372.1,0.00170527]
[1642016689223,0.3,3372.2,3372.1,0.00170527]
[1642016689425,0.3,3372.2,3372.0,0.41460368]
[1642016690425,3.58454077,3372.2,3372.0,0.41460368]
[1642016690868,2.54319077,3372.2,3372.0,1.15588368]
[1642016691269,2.54319077,3372.2,3372.1,4.4686]
[1642016691467,1.08090759,3372.3,3372.1,4.4686]
[1642016691867,1.08090759,3372.3,3372.2,1.0]
[1642016692268,0.78204443,3372.3,3372.2,1.0]
[1642016693274,0.78204443,3372.3,3372.2,6.7]
[1642016693572,1.08204443,3372.3,3372.2,6.7]
[1642016694472,0.30113684,3372.3,3372.2,1.0]
[1642016694677,0.30113684,3372.3,3372.1,2.48228]
[1642016694872,0.30113684,3372.3,3372.2,0.1186]
[1642016695075,0.30113684,3372.3,3372.1,2.48228]
[1642016695272,0.30113684,3372.3,3372.1,1.48228]
[1642016695473,1.07691215,3372.3,3372.1,2.48228]
[1642016695873,0.30113684,3372.3,3372.1,2.48228]
[1642016696474,0.30113684,3372.3,3372.2,0.1186]
[1642016696676,0.30113684,3372.3,3372.1,2.48228]
[1642016696677,0.30113684,3372.3,3372.1,1.1186]
[1642016696876,0.30113684,3372.3,3372.1,1.0]
[1642016697177,0.30113684,3372.3,3372.0,1.15588368]
[1642016697573,0.7412409,3372.2,3372.0,1.15588368]
[1642016697774,0.78112153,3372.2,3372.0,1.15588368]
[1642016697979,0.78112153,3372.2,3372.0,2.15588368]
[1642016698174,1.78365914,3372.3,3372.0,2.15588368]
[1642016698175,0.30113684,3372.3,3372.0,2.15588368]
[1642016698977,0.30113684,3372.3,3372.0,1.15588368]
[1642016699174,0.30113684,3372.3,3372.0,2.15588368]
[1642016699375,0.30113684,3372.3,3372.0,1.15588368]
[1642016699576,0.30113684,3372.3,3372.0,2.15588368]
[1642016699975,0.30113684,3372.3,3372.0,1.15588368]
[1642016700174,0.00113684,3372.3,3372.0,2.15588368]
[1642016700675,0.00113684,3372.3,3372.0,1.15588368]
[1642016701079,0.00113684,3372.3,3372.2,7.04109]
[1642016701477,0.00113684,3372.3,3372.2,8.04109]
[1642016704225,2.54375423,3372.6,3372.4,0.74097]
[1642016704624,0.00113685,3372.5,3372.4,1.74097]
[1642016705027,0.00113685,3372.5,3372.4,2.92486663]
[1642016705975,0.00113685,3372.5,3372.4,6.52486663]
[1642016708778,0.00113685,3372.5,3372.4,2.92486663]
[1642016709620,0.00113685,3372.5,3372.4,3.03447257]
[1642016710219,2.11623972,3372.6,3372.5,4.5]
[1642016710623,0.03803308,3372.7,3372.5,5.5]
[1642016710828,0.03106829,3373.1,3372.6,1.1186]
[1642016711022,1.51031271,3373.4,3372.6,1.1186]
[1642016711023,1.51031271,3373.4,3372.8,0.74085]
[1642016711221,0.10284212,3373.0,3372.9,6.60654655]
[1642016711624,0.10284212,3373.0,3372.9,7.60654655]
[1642016712629,0.7408348,3373.6,3373.0,6.92721776]
[1642016712823,0.0368256,3373.6,3373.2,0.74085]
[1642016713070,0.3,3373.5,3373.2,0.74085]
[1642016713372,0.00227369,3373.4,3373.2,0.74085]
[1642016713771,0.3,3373.5,3373.2,0.74085]
[1642016713772,0.00170527,3373.3,3373.2,0.74085]
[1642016713973,0.00170527,3373.3,3373.2,5.34085]
[1642016714374,0.00170527,3373.3,3373.2,6.34085]
[1642016714774,0.00170527,3373.3,3373.2,9.14298379]
[1642016715179,0.00170527,3373.3,3373.2,9.19778676]
[1642016716919,0.00170527,3373.3,3373.2,6.45045594]
[1642016717521,0.00170527,3373.3,3373.2,1.85045594]
[1642016717724,0.00170527,3373.3,3373.2,0.85045594]
[1642016719825,3.25170527,3373.3,3373.2,0.10960594]
[1642016720028,3.55170527,3373.3,3373.2,0.10960594]
[1642016721265,2.11201798,3373.3,3373.2,0.10960594]
[1642016722473,0.60170527,3373.3,3373.2,0.10960594]
[1642016723475,0.30170527,3373.3,3373.2,0.10960594]
[1642016723677,0.00170527,3373.3,3373.2,0.10960594]
[1642016723875,0.00170527,3373.3,3373.2,6.25050594]
[1642016724076,0.00170527,3373.3,3373.2,7.25050594]
[1642016725635,0.00170527,3373.3,3373.2,7.36890594]
[1642016726434,0.00170527,3373.3,3373.2,1.96890594]
[1642016726839,0.00170527,3373.3,3373.2,4.72613973]
[1642016727037,0.00170527,3373.3,3373.2,0.96890594]
[1642016727236,0.00170527,3373.3,3373.2,1.96890594]
[1642016727839,0.00170527,3373.3,3373.2,5.26890594]
[1642016728774,0.00170527,3373.3,3373.2,1.96890594]
[1642016728974,0.00170527,3373.3,3373.2,0.96890594]
[1642016729384,0.00170527,3373.3,3373.2,3.6849447]
[1642016729583,0.00170527,3373.3,3373.2,4.6849447]
[1642016729780,0.00170527,3373.3,3373.2,9.3849447]
[1642016730182,0.00170527,3373.3,3373.2,9.8099447]
[1642016733924,0.00170527,3373.3,3373.2,7.09390594]
[1642016734527,3.2629808,3373.7,3373.3,6.2]
[1642016734727,3.2629808,3373.7,3373.4,0.74079]
[1642016734926,0.00170527,3373.6,3373.4,1.74079]
[1642016735325,0.00113684,3373.5,3373.4,1.74079]
[1642016735778,0.00113684,3373.5,3373.4,6.54079]
[1642016736774,0.30113684,3373.5,3373.4,6.54079]
[1642016737775,2.84432938,3373.5,3373.4,6.54079]
[1642016738175,2.84432938,3373.5,3373.4,1.74079]
[1642016738778,2.84432938,3373.5,3373.4,4.69079]
[1642016740243,2.84432938,3373.5,3373.4,4.80039594]
[1642016744684,2.54432938,3373.5,3373.4,4.80039594]
[1642016745189,2.54432938,3373.5,3373.4,1.85039594]
[1642016745989,2.84432938,3373.5,3373.4,1.85039594]
[1642016746185,2.84432938,3373.5,3373.4,0.85039594]
[1642016750575,0.34204083,3374.3,3374.2,1.11777495]
[1642016751071,0.34204083,3374.3,3374.2,1.41777495]
[1642016751276,0.34204083,3374.3,3374.2,1.47257792]
[1642016751471,1.51466679,3374.7,3374.2,1.47257792]
[1642016751675,1.51466679,3374.7,3374.2,2.57606235]
[1642016751874,0.00568424,3374.5,3374.2,2.57606235]
[1642016752276,0.00511582,3374.4,3374.2,2.57606235]
[1642016752475,0.00328159,3374.4,3374.2,2.57606235]
[1642016752681,0.00271316,3374.3,3374.2,2.57606235]
[1642016754181,0.00271316,3374.3,3374.2,3.57606235]
[1642016755830,0.00271316,3374.3,3374.2,4.31680235]
[1642016756434,0.00271316,3374.3,3374.2,4.37160532]
[1642016756638,0.77383679,3374.7,3374.4,0.7406709]
[1642016757034,0.00170527,3374.6,3374.5,0.3]
[1642016757836,0.00170527,3374.6,3374.5,1.04068]
[1642016758981,0.00170527,3374.6,3374.5,0.74068]
[1642016760587,1.52255107,3374.6,3374.5,1.04068]
[1642016760987,1.52255107,3374.6,3374.5,0.3]
[1642016761929,1.52255107,3374.6,3374.5,0.35480297]
[1642016762131,0.00170527,3374.6,3374.5,0.05480297]
[1642016762339,4.35170527,3374.6,3374.5,0.05480297]
[1642016762530,4.35170527,3374.6,3374.5,0.10960594]
[1642016762729,7.24278305,3374.6,3374.5,0.10960594]
[1642016763130,7.36118305,3374.6,3374.5,0.10960594]
[1642016763934,0.891,3374.1,3372.3,2.26814014]
[1642016764136,0.891,3373.3,3372.3,2.26814014]
[1642016764340,0.891,3373.3,3373.0,1.53422697]
[1642016764534,0.891,3373.3,3373.1,0.7410807]
[1642016764737,0.891,3373.3,3373.1,0.74790178]
[1642016764934,0.891,3373.3,3373.2,0.00625266]
[1642016765335,0.891,3373.3,3373.0,0.0073895]
[1642016765577,0.891,3373.1,3373.0,0.7485303]
[1642016765778,0.891,3373.1,3373.0,1.88255947]
[1642016767381,10.33617214,3373.1,3373.0,0.0073895]
[1642016767587,27.81457214,3373.1,3373.0,0.0073895]
[1642016767881,0.891,3372.8,3372.3,0.01136847]
[1642016768081,0.891,3372.6,3372.3,0.01136847]
[1642016768380,0.891,3372.4,3372.3,0.01136847]
[1642016768580,3.83339633,3372.4,3372.3,0.01136847]
[1642016769635,3.83339633,3372.4,3372.2,0.82106177]
[1642016769829,0.891,3372.4,3372.2,0.82106177]
[1642016771046,0.891,3372.4,3372.2,0.70266177]
[1642016771233,3.43532504,3372.3,3372.1,1.0]
[1642016771433,0.891,3372.1,3372.0,2.89711508]
[1642016771635,0.891,3372.1,3372.0,3.19711508]
[1642016771835,0.891,3372.1,3372.0,3.19882035]
[1642016772835,0.891,3372.1,3372.0,2.89882035]
[1642016773678,0.891,3372.1,3372.0,3.64006335]
[1642016773884,0.891,3372.1,3372.0,3.94006335]
[1642016776084,3.43539986,3372.1,3372.0,3.94006335]
[1642016776683,3.43539986,3372.1,3372.0,4.68126335]
[1642016776923,3.43539986,3372.1,3372.0,4.79986335]
[1642016777924,0.891,3372.1,3372.0,4.79986335]
[1642016778330,0.891,3372.1,3372.0,7.84986335]
[1642016781178,0.891,3372.1,3372.0,5.09986335]
[1642016781581,0.891,3372.1,3372.0,4.68126335]
[1642016781783,0.891,3372.1,3372.0,3.94006335]
[1642016781981,0.891,3372.1,3372.0,4.24006335]
[1642016782787,0.00113685,3372.5,3372.0,3.94006335]
[1642016782985,0.89213685,3372.5,3372.3,0.3]
[1642016784188,3.54858346,3372.4,3372.3,0.3]
[1642016784436,0.891,3372.4,3372.3,0.3]
[1642016784635,0.891,3372.4,3372.1,1.30113684]
[1642016784835,0.891,3372.2,3372.1,0.30113684]
[1642016785035,0.891,3372.2,3372.1,1.30113684]
[1642016786035,0.891,3372.2,3372.1,0.30113684]
[1642016786236,0.891,3372.2,3372.1,6.05113684]
[1642016786437,0.891,3372.2,3372.1,5.05113684]
[1642016786635,0.891,3372.2,3372.1,6.05113684]
[1642016787235,0.891,3372.2,3372.1,6.16973684]
[1642016787839,0.891,3372.2,3372.1,1.71973684]
[1642016789276,0.891,3372.2,3372.1,1.60113684]
[1642016790080,0.891,3372.2,3372.1,5.45113684]
[1642016791483,0.891,3372.2,3372.1,5.56973684]
[1642016791932,0.891,3372.2,3372.1,5.56673684]
[1642016792130,0.891,3372.2,3372.1,1.71673684]
[1642016792934,0.00113685,3372.5,3372.3,1.4821166]
[1642016793132,0.00113685,3372.5,3372.3,2.7821166]
[1642016793335,0.00113685,3372.5,3372.3,3.0821166]
[1642016793733,0.891,3373.0,3372.5,2.2228868]
[1642016793935,0.891,3373.0,3372.7,0.74097]
[1642016794234,0.00227369,3372.9,3372.8,1.2087032]
[1642016795238,0.00227369,3372.9,3372.8,1.9497532]
[1642016795592,0.00227369,3372.9,3372.8,3.2497532]
[1642016800744,0.00227369,3372.9,3372.8,2.9497532]
[1642016800949,3.43723577,3372.9,3372.8,2.9497532]
[1642016803595,3.43723577,3372.9,3372.8,3.2497532]
[1642016806000,3.43723577,3372.9,3372.8,3.3681532]
[1642016806202,1.51877491,3373.4,3373.1,1.4818]
[1642016806603,0.0022737,3373.3,3373.1,3.82259]
[1642016806840,1.51877491,3373.5,3373.3,6.7]
[1642016807141,1.51877491,3373.5,3373.4,9.33096871]
[1642016807340,2.28207699,3373.7,3373.4,9.33096871]
[1642016807341,2.28207699,3373.7,3373.5,3.4]
[1642016807542,2.28207699,3373.7,3373.6,3.44077]
[1642016807746,2.28207699,3373.7,3373.6,4.85917]
[1642016807945,2.28435068,3373.7,3373.6,5.15917]
[1642016808548,0.00227369,3373.7,3373.6,5.15917]
[1642016809550,0.00227369,3373.7,3373.6,2.45917]
[1642016810449,0.00227369,3373.7,3373.6,0.85917]
[1642016811733,0.00227369,3373.7,3373.6,1.15781266]
[1642016811933,0.00227369,3373.7,3373.6,2.33941266]
[1642016821303,0.00227369,3373.7,3373.6,2.03941266]
[1642016821701,0.00227369,3373.7,3373.6,1.03941266]
[1642016821943,0.00227369,3373.7,3373.6,2.03941266]
[1642016822543,0.00227369,3373.7,3373.6,0.29864266]
[1642016822743,0.00227369,3373.7,3373.6,1.29864266]
[1642016823547,0.00227369,3373.7,3373.6,0.29864266]
[1642016823848,0.00227369,3373.7,3373.6,1.29864266]
[1642016824048,0.00227369,3373.7,3373.6,0.29864266]
[1642016828201,0.00227369,3373.7,3373.6,0.59864266]
[1642016829751,0.00227369,3373.7,3373.6,0.71704266]
[1642016832551,0.00227369,3373.7,3373.6,7.41704266]
[1642016832952,0.00227369,3373.7,3373.6,8.41704266]
[1642016837843,2.54382315,3374.4,3373.6,8.41704266]
[1642016838044,2.54382315,3374.4,3374.1,0.7406829]
[1642016838242,0.00568423,3374.3,3374.2,2.19847912]
[1642016838442,0.00568423,3374.3,3374.2,2.49847912]
[1642016838641,0.00568423,3374.3,3374.2,3.49847912]
[1642016839448,2.54950738,3374.3,3374.2,3.49847912]
[1642016839847,2.54950738,3374.3,3374.2,2.48138]
[1642016840050,5.3330316,3374.3,3373.8,1.0]
[1642016840248,5.3330316,3374.3,3372.6,9.54442]
[1642016840249,5.34553039,3374.3,3373.2,1.4819383]
[1642016840450,0.43011581,3374.2,3373.2,1.4819383]
[1642016840700,2.78352422,3374.1,3372.6,6.20934]
[1642016840897,3.21307161,3374.1,3372.6,6.20934]
[1642016841097,0.12247896,3374.0,3373.3,1.29463483]
[1642016841302,0.12247896,3374.0,3373.7,1.45358556]
[1642016841497,2.28548753,3373.9,3373.7,1.45358556]
[1642016841898,4.10284211,3373.8,3373.7,1.45358556]
[1642016842099,0.00284211,3373.8,3373.7,1.75358556]
[1642016843000,4.06608717,3373.8,3373.7,1.75358556]
[1642016843501,4.06608717,3373.8,3373.7,1.45358556]
[1642016844350,0.00284211,3373.8,3373.7,1.45358556]
[1642016845053,2.54666526,3373.8,3373.7,1.45358556]
[1642016845852,0.00284211,3373.8,3373.7,1.45358556]
[1642016847555,1.52226402,3373.8,3373.7,1.45358556]
[1642016850503,0.00284211,3373.8,3373.7,1.45358556]
[1642016851702,2.2731191,3374.0,3373.8,0.7408498]
[1642016851944,2.2731191,3374.0,3373.8,1.4816998]
[1642016853145,3.037024,3374.3,3373.8,0.74085]
[1642016853347,3.037024,3374.3,3373.9,2.2224576]
[1642016853646,0.0022737,3374.2,3373.9,2.2224576]
[1642016853846,0.0022737,3374.2,3373.9,2.5224576]
[1642016854054,0.00170528,3374.1,3373.9,2.5224576]
[1642016854451,0.00113685,3374.0,3373.9,2.5224576]
[1642016854854,0.00113685,3374.0,3373.9,3.98837929]
[1642016855053,0.00113685,3374.0,3373.9,4.98837929]
[1642016855258,3.037024,3374.3,3373.9,4.98837929]
[1642016855455,3.037024,3374.3,3374.1,0.74071]
[1642016855696,0.00113685,3374.2,3374.1,2.5221198]
[1642016855896,3.037024,3374.3,3374.1,2.5221198]
[1642016856299,3.037024,3374.3,3374.2,1.0]
[1642016856495,3.037024,3374.6,3374.2,1.0]
[1642016856915,3.03929769,3374.6,3374.4,0.74072]
[1642016857098,3.03929769,3374.6,3374.5,1.41036729]
[1642016857698,0.00227369,3374.6,3374.5,1.41036729]
[1642016860755,0.1184,3375.1,3374.5,1.41036729]
[1642016860957,0.1184,3375.1,3374.7,2.2220634]
[1642016861159,3.04395039,3374.9,3374.8,1.41442731]
[1642016861561,3.04565566,3374.9,3374.8,1.41442731]
[1642016862258,3.04565566,3374.9,3374.8,1.8590841]
[1642016862458,3.04565566,3374.9,3374.8,5.1090841]
[1642016862658,0.00170527,3374.9,3374.8,5.1090841]
[1642016862857,7.08298965,3375.6,3374.8,1.1184]
[1642016862858,3.79224597,3375.5,3374.8,1.1184]
[1642016863097,3.79224597,3375.5,3375.0,1.4810533]
[1642016863394,3.79224597,3375.5,3375.1,2.35991652]
[1642016863395,0.0022737,3375.3,3375.1,2.35991652]
[1642016863596,3.79224597,3375.5,3375.2,0.74053]
[1642016864196,3.79224597,3375.5,3375.2,1.74053]
[1642016864398,3.79224597,3375.5,3375.2,2.78094]
[1642016864598,3.79224597,3375.5,3375.2,3.52135]
[1642016864799,3.79224597,3375.9,3375.3,0.85879]
[1642016864999,3.79224597,3375.9,3375.6,2.65110216]
[1642016865201,3.79565651,3375.9,3375.6,4.87214616]
[1642016865401,3.79565651,3375.9,3375.7,1.74035]
[1642016865801,3.79565651,3375.9,3375.8,1.35473752]
[1642016866002,0.00341054,3375.9,3375.8,1.35473752]
[1642016866202,0.00341054,3375.9,3375.8,1.65473752]
[1642016867257,2.54590068,3375.9,3375.8,8.35473752]
[1642016867459,3.79224597,3376.4,3376.0,1.4803577]
[1642016867657,3.79224597,3376.4,3376.2,0.74018]
[1642016867860,3.79224597,3376.4,3376.2,2.93969751]
[1642016868056,3.79224597,3376.4,3376.3,1.0]
[1642016868258,3.79224597,3376.4,3376.3,1.1184]
[1642016868460,5.05632796,3376.9,3376.4,6.2]
[1642016868659,5.05632796,3376.9,3376.6,0.74007]
[1642016868857,0.0022737,3376.8,3376.7,0.1184]
[1642016869159,3.80487556,3376.8,3376.7,0.1184]
[1642016869858,3.80487556,3376.8,3376.7,0.15458487]
[1642016870058,3.80487556,3376.8,3376.7,2.28131983]
[1642016870458,0.0022737,3376.8,3376.7,2.28131983]
[1642016871305,0.0022737,3376.8,3376.7,6.58131983]
[1642016871704,0.0022737,3376.8,3376.7,9.36717055]
[1642016872104,0.1184,3377.9,3377.2,0.73999]
[1642016872306,0.1184,3378.2,3377.5,0.73999]
[1642016872508,0.00568423,3377.8,3377.5,0.73999]
[1642016872707,0.1184,3377.7,3377.5,1.03999]
[1642016872908,0.12351581,3377.7,3377.6,1.37379477]
[1642016873110,0.34690006,3378.5,3377.6,1.37379477]
[1642016873111,0.1184,3378.2,3377.6,1.37379477]
[1642016873309,0.64690006,3378.5,3377.6,1.37379477]
[1642016873310,0.1184,3378.4,3378.0,1.44953826]
[1642016873513,0.1184,3378.4,3377.6,1.67379477]
[1642016873514,0.12749477,3378.4,3377.6,1.67379477]
[1642016874566,0.12749477,3378.4,3378.1,1.36761733]
[1642016874768,0.00909477,3378.4,3378.2,0.00664634]
[1642016875066,0.00909477,3378.4,3378.1,1.66761733]
[1642016876070,0.00909477,3378.4,3378.2,1.4588921]
[1642016876267,0.00909477,3378.4,3378.1,1.66761733]
[1642016876468,0.00909477,3378.4,3378.1,0.3]
[1642016876668,0.1184,3378.3,3377.5,1.0]
[1642016876868,2.25925366,3378.2,3377.5,1.0]
[1642016877067,2.25925366,3378.2,3377.4,1.6319654]
[1642016877068,2.26721159,3378.2,3377.4,2.6319654]
[1642016877269,0.0073895,3378.1,3377.4,1.6319654]
[1642016877468,0.0073895,3378.1,3377.5,1.0]
[1642016877669,0.00682108,3378.0,3377.7,2.63448243]
[1642016877868,0.00682108,3378.0,3377.7,3.30044353]
[1642016878097,0.00625266,3377.9,3377.7,3.60044353]
[1642016878499,0.00568423,3377.8,3377.6,1.85914793]
[1642016878905,0.00511581,3377.7,3377.6,1.11918793]
[1642016879705,0.00511581,3377.7,3377.6,2.45106463]
[1642016880106,0.00511581,3377.7,3377.5,1.0]
[1642016880403,0.00454739,3377.6,3377.5,1.3]
[1642016880808,0.00454739,3377.6,3377.4,0.3]
[1642016880809,0.12294739,3377.6,3377.4,0.3]
[1642016881005,0.12294739,3377.6,3377.3,0.1184]
[1642016881212,0.00397896,3377.5,3377.3,0.4184]
[1642016881408,0.00397896,3377.5,3377.3,0.1184]
[1642016881607,3.05341054,3377.4,3377.3,0.1184]
[1642016882249,0.00341054,3377.4,3377.3,0.1184]
[1642016882451,0.00341054,3377.4,3377.2,1.44422118]
[1642016882850,0.00284212,3377.3,3377.2,1.74422118]
[1642016883250,0.00284212,3377.3,3377.2,0.3]
[1642016883653,0.00284212,3377.3,3376.9,0.6661431]
[1642016883952,0.00227369,3377.2,3376.9,0.6661431]
[1642016884151,0.00227369,3377.2,3376.9,0.9661431]
[1642016884353,0.00170527,3377.1,3376.9,0.9661431]
[1642016884759,0.00113685,3377.0,3376.9,0.9661431]
[1642016888308,0.00113685,3377.0,3376.9,7.15214025]
[1642016888509,0.00113685,3377.0,3376.9,7.27054025]
[1642016888709,0.00113685,3377.0,3376.9,8.27054025]
[1642016888909,0.00113685,3377.0,3376.9,8.30622149]
[1642016889110,0.00113685,3377.0,3376.9,9.46734025]
[1642016889349,0.00113685,3377.0,3376.9,9.49875175]
[1642016889551,0.00113685,3377.0,3376.9,9.46734025]
[1642016889752,0.00113685,3377.0,3376.9,9.50057043]
[1642016889953,0.00113685,3377.0,3376.9,9.46734025]
[1642016890154,0.00113685,3377.0,3376.9,9.50655214]
[1642016890357,0.00113685,3377.0,3376.9,9.46734025]
[1642016890555,0.00113685,3377.0,3376.9,4.95718541]
[1642016890754,0.00113685,3377.0,3376.9,4.91734025]
[1642016890954,0.00113685,3377.0,3376.9,4.94955848]
[1642016891154,0.00113685,3377.0,3376.9,4.91734025]
[1642016891356,0.00113685,3377.0,3376.9,4.95656434]
[1642016891555,0.00113685,3377.0,3376.9,4.91734025]
[1642016891958,0.00113685,3377.0,3376.9,8.91734025]
[1642016892157,0.00113685,3377.0,3376.9,4.91734025]
[1642016892457,0.00113685,3377.0,3376.9,4.61734025]
[1642016892856,0.00113685,3377.0,3376.9,4.91734025]
[1642016893697,0.00113685,3377.0,3376.9,4.61734025]
[1642016894503,0.00113685,3377.0,3376.9,4.49894025]
[1642016897147,0.00113685,3377.0,3376.9,3.83279715]
[1642016898452,0.00113685,3377.0,3376.9,2.63599715]
[1642016904649,0.00113685,3377.0,3376.8,2.4841847]
[1642016905647,2.27999982,3376.9,3376.8,2.4841847]
[1642016906244,2.27999982,3376.9,3376.8,1.4841847]
[1642016906646,2.27999982,3376.9,3376.8,2.4841847]
[1642016907446,2.27999982,3376.9,3376.8,1.4841847]